fUSD/lending_fUSD_20240118
["ID","MTS","AMOUNT","RATE_DAILY","PERIOD"]
[312063744,1705593923108,916.83199673,0.00021603,2]
[312063745,1705593923514,759.00584575,0.00021603,2]
[312063746,1705593923580,286.6896523,0.00021603,2]
[312063747,1705593924264,843.17283709,0.00021603,2]
[312063748,1705593924467,155.0,0.00021603,2]
[312063749,1705593925082,314.3008228,0.00021603,2]
[312063750,1705593925283,155.0,0.00021603,2]
[312063751,1705593925378,2137.86886367,0.00021603,2]
[312063752,1705593925585,361.73818308,0.00021603,2]
[312063753,1705593925649,263.42732666,0.00021603,2]
[312063754,1705593925764,202.69024443,0.00021603,2]
[312063755,1705593926076,155.0,0.00021603,2]
[312063756,1705593926104,2436.7288395,0.00021603,2]
[312063757,1705593926201,155.0,0.00021603,2]
[312063758,1705593926471,159.84444048,0.00021603,2]
[312063759,1705593926597,1768.17650467,0.00021603,2]
[312063760,1705593926761,354.54863054,0.00021603,2]
[312063761,1705593926998,211.71085073,0.00021603,2]
[312063762,1705593927749,155.0,0.00021603,2]
[312063763,1705593927906,527.95807681,0.00021603,2]
[312063764,1705593928106,371.22057227,0.00021603,2]
[312063765,1705593928365,326.6529487,0.00021603,2]
[312063766,1705593929758,284.87917924,0.00021603,2]
[312063767,1705593929794,2620.20267058,0.00021603,2]
[312063768,1705593929910,6438.60414966,0.00021603,2]
[312063769,1705593930379,155.0,0.00021603,2]
[312063770,1705593930491,1057019.71180784,0.00021603,2]
[312063771,1705593930662,250.33246589,0.00021603,2]
[312063772,1705593930836,337.65513857,0.00021603,2]
[312063773,1705593931119,404.33758055,0.00021603,2]
[312063774,1705593931378,651.64595298,0.00021603,2]
[312063775,1705593931406,400.57382129,0.00021603,2]
[312063776,1705593931437,1709.34804909,0.00021603,2]
[312063777,1705593932201,155.0,0.00021603,2]
[312063778,1705593932444,3677.26281111,0.00021603,4]
[312063779,1705593932626,187.18634131,0.00021522,2]
[312063780,1705593933395,155.65894821,0.00021603,2]
[312063781,1705593933441,150.0,0.00019701,2]
[312063782,1705593933472,220.43024859,0.00021603,2]
[312063783,1705593933665,155.0,0.00021603,2]
[312063784,1705593933699,10556.47736135,0.00021603,2]
[312063785,1705593933871,150.0,0.00020249,4]
[312063786,1705593933949,1416.95405969,0.00021603,2]
[312063787,1705593934184,150.0,0.00020796,4]
[312063788,1705593934336,1256.24889353,0.00021603,2]
[312063789,1705593934501,626.01392787,0.00021603,2]
[312063790,1705593934533,150.0,0.00021343,4]
[312063791,1705593934560,155.0,0.00021603,2]
[312063792,1705593934702,190.08810263,0.00021603,2]
[312063793,1705593934733,4487.93862485,0.00021603,2]
[312063794,1705593934843,162.34847253,0.00021603,2]
[312063795,1705593934965,155.78223496,0.00021603,2]
[312063796,1705593935190,308.83142289,0.00021508,2]
[312063797,1705593935273,4247.28131875,0.00021603,2]
[312063798,1705593935305,244.93518239,0.00021603,2]
[312063799,1705593935411,155.41447539,0.00021603,2]
[312063800,1705593935685,155.0,0.00021603,2]
[312063801,1705593935717,155.0,0.00021603,2]
[312063802,1705593935946,1915.18587891,0.00021603,2]
[312063803,1705593936018,223.77515077,0.00021603,2]
[312063804,1705593936104,155.30397585,0.00021603,2]
[312063805,1705593936134,156.96378637,0.00021603,2]
[312063806,1705593936194,1099.52122903,0.00021603,2]
[312063807,1705593936373,2306.97835772,0.00021603,2]
[312063808,1705593936503,155.51550435,0.00021603,2]
[312063809,1705593936939,337.52596484,0.00021603,2]
[312063810,1705593937111,234.42493184,0.00021603,2]
[312063811,1705593937185,252.97980299,0.00021603,2]
[312063812,1705593937379,3625.38932793,0.00021603,2]
[312063813,1705593937506,187.897926,0.00021603,2]
[312063814,1705593937737,2947.31448158,0.00021603,2]
[312063815,1705593937905,282.16776904,0.00021603,2]
[312063816,1705593938003,209.26071767,0.00021602,2]
[312063817,1705593938376,161.78624904,0.00021603,2]
[312063818,1705593938446,155.0,0.00021602,2]
[312063819,1705593938499,341.14,0.00020732,2]
[312063820,1705593938558,4636.4763127,0.00021603,2]
[312063821,1705593938591,155.0,0.00021603,2]
[312063822,1705593938624,155.26555109,0.00021602,2]
[312063823,1705593938650,2018.10308734,0.00021602,2]
[312063824,1705593938838,925.43901568,0.00021603,2]
[312063825,1705593938990,155.0,0.00021603,2]
[312063826,1705593939016,285.40909205,0.00021602,2]
[312063827,1705593939075,288.97700953,0.00021602,2]
[312063828,1705593939121,582.01339009,0.00021602,2]
[312063829,1705593939404,2137.86886367,0.00021602,2]
[312063830,1705593939457,543.30184604,0.00021603,2]
[312063831,1705593939713,172.24116305,0.00021602,2]
[312063832,1705593939800,232.01808431,0.00021603,2]
[312063833,1705593940320,196.75901238,0.00021603,2]
[312063834,1705593940513,200.0,0.00020732,2]
[312063835,1705593941069,155.50156782,0.00021603,2]
[312063836,1705593941102,314.12888107,0.00021603,2]
[312063837,1705593941294,4272.85688263,0.00021603,2]
[312063838,1705593941404,155.65025406,0.00021603,2]
[312063839,1705593941568,155.21024572,0.00021603,2]
[312063840,1705593941598,501.47469399,0.00021602,2]
[312063841,1705593941703,1393.15767295,0.00021602,2]
[312063842,1705593941903,2562.86114157,0.00021603,2]
[312063843,1705593941933,419.558574,0.00021603,2]
[312063844,1705593942080,371.22057227,0.00021603,2]
[312063845,1705593942196,156.12868291,0.00021603,2]
[312063846,1705593942300,1768.17650467,0.00021603,2]
[312063847,1705593942489,160.11225805,0.00021603,2]
[312063848,1705593942646,235.69028679,0.00021603,2]
[312063849,1705593942838,376.92196411,0.00021602,2]
[312063850,1705593942905,155.49812436,0.00021603,2]
[312063851,1705593942994,211.71085073,0.00021603,2]
[312063852,1705593943525,307.48466445,0.00021601,2]
[312063853,1705593943553,162.54625844,0.00021603,2]
[312063854,1705593943617,2605.00004126,0.00021603,2]
[312063855,1705593943651,181.05411383,0.00021603,2]
[312063856,1705593943891,766.72186599,0.00021601,2]
[312063857,1705593943925,160.67049631,0.00021601,2]
[312063858,1705593944003,155.0,0.00021603,2]
[312063859,1705593944032,173.63631031,0.00021603,2]
[312063860,1705593944271,843.17283709,0.00021603,2]
[312063861,1705593944302,202.69024443,0.00021603,2]
[312063862,1705593944477,486476.87011659,0.00021603,2]
[312063863,1705593946685,295.51839243,0.00021601,2]
[312063864,1705593946798,364.09538564,0.00021602,2]
[312063865,1705593948883,417.99759003,0.00021592,2]
[312063866,1705593951117,542.93511757,0.00021602,2]
[312063867,1705593951895,532.93571478,0.00021602,2]
[312063868,1705593952008,155.0,0.00021602,2]
[312063869,1705593952128,171.89568973,0.00021602,2]
[312063870,1705593952378,473.29314073,0.00021602,2]
[312063871,1705593954546,302.2665932,0.00021602,2]
[312063872,1705593955695,2145.66356241,0.00021602,2]
[312063873,1705593956093,3044.61252988,0.00021602,2]
[312063874,1705593956575,155.0,0.00021602,2]
[312063875,1705593956903,5443.76523819,0.00021602,2]
[312063876,1705593957020,265.51293353,0.00021602,2]
[312063877,1705593957475,155.0,0.00021602,2]
[312063878,1705593957820,232.01808431,0.00021602,2]
[312063879,1705593958190,741.66751003,0.00021602,2]
[312063880,1705593958825,380.73246899,0.00021602,2]
[312063881,1705593959699,33377.27737078,0.00021602,2]
[312063882,1705593960305,196.75901238,0.00021602,2]
[312063883,1705593960386,161.78624904,0.00021602,2]
[312063884,1705593960791,940.65228731,0.00021602,2]
[312063885,1705593961187,307.48466445,0.00021602,2]
[312063886,1705593961409,3005.22093109,0.00021602,2]
[312063887,1705593961768,697.91303383,0.00021602,2]
[312063888,1705593961897,209.93689947,0.00021602,2]
[312063889,1705593961927,766.72186599,0.00021602,2]
[312063890,1705593961960,200.0,0.00020724,2]
[312063891,1705593962092,5215.40332548,0.00021602,2]
[312063892,1705593962300,748.48057077,0.00021602,2]
[312063893,1705593962501,150.0,0.00021602,2]
[312063894,1705593962860,1045.42044189,0.00021602,2]
[312063895,1705593963111,542.93511757,0.00021602,2]
[312063896,1705593964069,217.97798028,0.00021602,2]
[312063897,1705593964526,327.16185942,0.00021602,2]
[312063898,1705593964845,384.65105166,0.00021602,2]
[312063899,1705593964881,474.43564618,0.00021602,2]
[312063900,1705593965028,176.71369729,0.00021602,2]
[312063901,1705593966276,155.82584714,0.00021602,2]
[312063902,1705593966551,302.2665932,0.00021602,2]
[312063903,1705593967547,524.85123052,0.00021602,2]
[312063904,1705593967887,199.24882341,0.00021602,2]
[312063905,1705593968140,173.55984273,0.00021602,2]
[312063906,1705593968446,473.11211538,0.00021602,2]
[312063907,1705593968770,403.11685763,0.00021602,2]
[312063908,1705593968906,10525.98434181,0.00021602,2]
[312063909,1705593969882,1070.78652453,0.00021601,2]
[312063910,1705593970029,211.74647838,0.00021602,2]
[312063911,1705593970217,33759.32248452,0.00021602,2]
[312063912,1705593970898,1965.65388891,0.00021602,2]
[312063913,1705593971262,270.03425655,0.00021601,2]
[312063914,1705593971890,532.93571478,0.00021602,2]
[312063915,1705593972094,1203.65085953,0.00021602,2]
[312063916,1705593972305,43004.73531426,0.00021602,2]
[312063917,1705593973019,265.51293353,0.00021602,2]
[312063918,1705593973086,235.16987039,0.00021602,2]
[312063919,1705593973722,2145.66356241,0.00021602,2]
[312063920,1705593974058,5215.40332548,0.00021602,2]
[312063921,1705593974088,3044.61252988,0.00021602,2]
[312063922,1705593974910,159.27993113,0.00021602,2]
[312063923,1705593974995,1000.0,0.00021602,2]
[312063924,1705593975512,155.0,0.00021602,2]
[312063925,1705593976391,286.37981594,0.00021602,2]
[312063926,1705593977653,697.91303383,0.00021602,2]
[312063927,1705593977702,33377.27737078,0.00021602,2]
[312063928,1705593977950,232.01808431,0.00021602,2]
[312063929,1705593978867,1045.42044189,0.00021602,2]
[312063930,1705593979420,3005.22093109,0.00021602,2]
[312063931,1705593979513,24346.02084907,0.00021602,2]
[312063932,1705593979889,506.42445006,0.00021602,2]
[312063933,1705593980005,248.75310239,0.00021602,2]
[312063934,1705593980084,217.97798028,0.00021602,2]
[312063935,1705593980793,672422.95981423,0.00021602,2]
[312063936,1705593980828,371.03648918,0.00021602,2]
[312063937,1705593980857,474.43564618,0.00021602,2]
[312063938,1705593981111,417.19620616,0.00021602,2]
[312063939,1705593981191,220.05402885,0.00021602,2]
[312063940,1705593981604,3859.70716788,0.00021602,2]
[312063941,1705593981898,199.24882341,0.00021602,2]
[312063942,1705593982087,384.65105166,0.00021602,2]
[312063943,1705593982305,236.62494088,0.00021602,2]
[312063944,1705593982557,301.67383898,0.00021602,2]
[312063945,1705593984053,1070.78652453,0.00021602,2]
[312063946,1705593984196,31840.29039718,0.00021602,2]
[312063947,1705593985245,10525.98434181,0.00021602,2]
[312063948,1705593985539,524.85123052,0.00021602,2]
[312063949,1705593986448,326.85950068,0.00021602,2]
[312063950,1705593986657,177.85048408,0.00021602,2]
[312063951,1705593989095,314.18551676,0.00021602,2]
[312063952,1705593989603,155.0,0.00021602,2]
[312063953,1705593989711,208.63559607,0.00021602,2]
[312063954,1705593989913,317.85445754,0.00021602,2]
[312063955,1705593990096,328.70969452,0.00021602,2]
[312063956,1705593990303,17549.14867465,0.00021602,2]
[312063957,1705593991020,265.51293353,0.00021602,2]
[312063958,1705593991482,158.80709241,0.00021602,2]
[312063959,1705593993077,235.16987039,0.00021602,2]
[312063960,1705593993263,269.80737049,0.00021602,2]
[312063961,1705593993474,185.86777237,0.00021602,2]
[312063962,1705593993517,24346.02084907,0.00021602,2]
[312063963,1705593993656,697.91303383,0.00021602,2]
[312063964,1705593993717,29621.80094555,0.00021602,2]
[312063965,1705593993792,205.0,0.00021552,2]
[312063966,1705593995962,155.0,0.00021602,2]
[312063967,1705593996159,232.33612834,0.00021602,2]
[312063968,1705593996259,249.0269254,0.00021602,2]
[312063969,1705593996305,3044.61252988,0.00021602,2]
[312063970,1705593996778,475.40847898,0.00021602,2]
[312063971,1705593996867,1045.42044189,0.00021602,2]
[312063972,1705593998060,5103.15936413,0.00021602,2]
[312063973,1705593998291,515.60399077,0.00021602,2]
[312063974,1705593998545,1178.34224011,0.00021602,2]
[312063975,1705593999410,3005.22093109,0.00021602,2]
[312063976,1705593999601,3859.70716788,0.00021602,2]
[312063977,1705594000077,290.82539817,0.00021602,2]
[312063978,1705594000859,155.0,0.00021602,2]
[312063979,1705594001907,199.51844971,0.00021602,2]
[312063980,1705594002262,384.65105166,0.00021602,2]
[312063981,1705594002547,239.09734402,0.00021602,2]
[312063982,1705594002801,371688.08750755,0.00021602,2]
[312063983,1705594002842,2902.03517227,0.00021602,2]
[312063984,1705594004899,10525.98434181,0.00021602,2]
[312063985,1705594005564,525.89752735,0.00021602,2]
[312063986,1705594005614,183.31693013,0.00021602,2]
[312063987,1705594005864,483.42086437,0.00021602,2]
[312063988,1705594007515,24346.02084907,0.00021602,2]
[312063989,1705594007887,155.0,0.00021602,2]
[312063990,1705594008192,1044.05266194,0.00021602,2]
[312063991,1705594009078,181.06705896,0.00021602,2]
[312063992,1705594009528,158.1254609,0.00021602,2]
[312063993,1705594010877,523.83148991,0.00021602,2]
[312063994,1705594011226,4626.66440069,0.00021602,2]
[312063995,1705594012072,3026.37796677,0.00021602,2]
[312063996,1705594013018,264.35567974,0.00021602,2]
[312063997,1705594014558,168.57406656,0.00021602,2]
[312063998,1705594015277,264.59547339,0.00021602,2]
[312063999,1705594015416,3005.22093109,0.00021602,2]
[312064000,1705594015670,697.91303383,0.00021602,2]
[312064001,1705594016508,7784.1727728,0.00021602,2]
[312064002,1705594017169,155.0,0.00021602,2]
[312064003,1705594017196,1045.42044189,0.00021602,2]
[312064004,1705594017605,2255.20123411,0.00021602,2]
[312064005,1705594018292,513.79171252,0.00021602,2]
[312064006,1705594018858,2902.03517227,0.00021602,2]
[312064007,1705594018950,177.24,0.00020765,2]
[312064008,1705594019406,177.24,0.00021543,2]
[312064009,1705594021693,252.97980299,0.00021601,2]
[312064010,1705594021793,4247.28131875,0.00021601,2]
[312064011,1705594021825,231.93292492,0.00021602,2]
[312064012,1705594022114,3625.38932793,0.00021601,2]
[312064013,1705594022148,651.64595298,0.00021601,2]
[312064014,1705594022197,361.95445477,0.00021602,2]
[312064015,1705594022332,400.57382129,0.00021601,2]
[312064016,1705594022844,1256.24889353,0.00021601,2]
[312064017,1705594022896,2306.97835772,0.00021601,2]
[312064018,1705594022926,7144.96597246,0.00021602,2]
[312064019,1705594022971,3677.26281111,0.00021601,4]
[312064020,1705594023000,395.018469,0.00021602,2]
[312064021,1705594025224,2839.43583539,0.00021602,2]
[312064022,1705594025905,155.0,0.00021602,2]
[312064023,1705594026179,1041.09925797,0.00021602,2]
[312064024,1705594029500,23629.25993659,0.00021602,2]
[312064025,1705594036304,392.91305308,0.00021601,2]
[312064026,1705594038888,808.42318203,0.00021601,2]
[312064027,1705594039742,382.20206994,0.00021601,2]
[312064028,1705594039891,3625.38932793,0.00021601,2]
[312064029,1705594040157,263.42732666,0.00021601,2]
[312064030,1705594040186,155.0,0.00021601,2]
[312064031,1705594040216,10556.47736135,0.00021601,2]
[312064032,1705594040289,2620.20267058,0.00021601,2]
[312064033,1705594040779,843.17283709,0.00021601,2]
[312064034,1705594041224,4487.93862485,0.00021601,2]
[312064035,1705594041301,220.43024859,0.00021601,2]
[312064036,1705594042576,155.0,0.00021601,2]
[312064037,1705594043077,4636.4763127,0.00021601,2]
[312064038,1705594043625,582.01339009,0.00021601,2]
[312064039,1705594043801,244.93518239,0.00021601,2]
[312064040,1705594043830,529.34675152,0.00021601,2]
[312064041,1705594043903,177.291089,0.00021601,2]
[312064042,1705594045906,1709.34804909,0.00021601,2]
[312064043,1705594047204,250.33246589,0.00021601,2]
[312064044,1705594054586,250.0,0.00020766,2]
[312064045,1705594054787,554.04613817,0.00021601,2]
[312064046,1705594055220,4487.93862485,0.00021601,2]
[312064047,1705594055316,293.69790256,0.00021601,2]
[312064048,1705594056192,1716.121999,0.00021601,2]
[312064049,1705594056293,188.12345647,0.00021601,2]
[312064050,1705594056328,286.52669732,0.00021601,2]
[312064051,1705594057891,3625.38932793,0.00021601,2]
[312064052,1705594059200,166.3818767,0.00021601,2]
[312064053,1705594059840,379.93877277,0.00021601,2]
[312064054,1705594062577,263.48061296,0.00021601,2]
[312064055,1705594063623,590.16918706,0.00021601,2]
[312064056,1705594063655,150.0,0.00020766,2]
[312064057,1705594063937,869.50001591,0.00021601,2]
[312064058,1705594064177,264.73350467,0.00021601,2]
[312064059,1705594065067,1767.32258078,0.00021601,2]
[312064060,1705594065810,244.93518239,0.00021601,2]
[312064061,1705594068105,3888.69037791,0.00021601,2]
[312064062,1705594072083,503.94970305,0.00021601,2]
[312064063,1705594075252,1423.67840459,0.00021601,2]
[312064090,1705594142707,150.0,0.00021601,2]
[312064091,1705594144097,215.56054804,0.00021601,2]
[312064093,1705594151230,3656.93192252,0.00020601,7]
[312064098,1705594161538,985.23,0.00020743,2]
[312064106,1705594184166,167.66,0.00020735,2]
[312064111,1705594194642,232.01808431,0.00021601,2]
[312064114,1705594199361,1256.24889353,0.000216,2]
[312064117,1705594205422,2000.0,0.00021602,2]
[312064119,1705594209859,200.0,0.00021602,2]
[312064120,1705594213402,239.22,0.00018822,2]
[312064121,1705594213948,239.22,0.00021086,2]
[312064122,1705594214333,231.84776553,0.00021601,2]
[312064123,1705594215361,1193.87435825,0.00021601,2]
[312064124,1705594216860,154.79,0.00020895,2]
[312064125,1705594217300,154.79,0.00021004,2]
[312064126,1705594217522,154.79,0.00021113,2]
[312064127,1705594217745,154.79,0.00021222,2]
[312064128,1705594217841,300.0,0.00021549,2]
[312064129,1705594218043,328.12380494,0.00021537,2]
[312064130,1705594218169,154.79,0.00021331,2]
[312064131,1705594218588,154.79,0.0002144,2]
[312064132,1705594219014,154.79,0.00021548,2]
[312064133,1705594223396,150.0,0.00021601,2]
[312064134,1705594223430,150.0,0.00021579,2]
[312064135,1705594224128,150.0,0.00021579,2]
[312064136,1705594224188,150.0,0.00021571,2]
[312064137,1705594224249,150.0,0.0002152,2]
[312064138,1705594224678,150.0,0.00021582,2]
[312064139,1705594224727,150.0,0.00021598,2]
[312064140,1705594224810,150.0,0.0002152,2]
[312064141,1705594226614,215.56054804,0.00021601,2]
[312064142,1705594230087,150.0,0.00021567,2]
[312064143,1705594231042,155.0,0.00025,30]
[312064176,1705594232221,-633.67212882,0.00021602,2]
[312064177,1705594232234,-499.95,0.00021602,2]
[312064178,1705594232245,-441.0,0.00021602,2]
[312064179,1705594232256,-500.0,0.00021602,2]
[312064180,1705594232267,-332.56664911,0.00021602,2]
[312064181,1705594232281,-4476.35881798,0.00021602,2]
[312064182,1705594232290,-2290.73904369,0.00021602,2]
[312064183,1705594232300,-155.68504552,0.00021602,2]
[312064184,1705594232309,-703.19296125,0.00021602,2]
[312064185,1705594232319,-828.167266,0.00021602,2]
[312064186,1705594232328,-155.85948189,0.00021602,2]
[312064187,1705594232337,-4247.28131875,0.00021602,2]
[312064188,1705594232347,-650.46770397,0.00021602,2]
[312064189,1705594232356,-1051.53431456,0.00021602,2]
[312064190,1705594232366,-3677.26281111,0.00021602,4]
[312064191,1705594232375,-242.20238605,0.00021603,2]
[312064192,1705594232384,-155.84109243,0.00021603,2]
[312064193,1705594232394,-336.7179586,0.00021603,2]
[312064194,1705594232403,-155.0,0.00021603,2]
[312064195,1705594232413,-403.53158867,0.00021603,2]
[312064196,1705594232422,-276.34854008,0.00021603,2]
[312064197,1705594232431,-924.92443241,0.00021603,2]
[312064198,1705594232440,-135.88523704,0.00021603,2]
[312064199,1705594232452,-121.49063098,0.00021603,2]
[312064200,1705594232465,-341.83071978,0.00021603,2]
[312064201,1705594232474,-61.2693093,0.00021603,2]
[312064202,1705594232489,-192.07547533,0.00021603,2]
[312064203,1705594232499,-165.45840668,0.00021603,2]
[312064204,1705594232508,-265.86409049,0.00021603,2]
[312064205,1705594232517,-225.21653009,0.00021603,2]
[312064206,1705594232527,-224.16083161,0.00021603,2]
[312064207,1705594232536,-157.31769832,0.00021603,2]
[312064208,1705594232546,-155.34162003,0.00021603,2]
[312064210,1705594232555,-156.93148293,0.00021603,2]
[312064212,1705594232564,-281.27567579,0.00021603,2]
[312064214,1705594232573,-251.73257719,0.00021603,2]
[312064216,1705594232583,-346.73653428,0.00021603,2]
[312064218,1705594232592,-285.02196866,0.00021603,2]
[312064220,1705594232601,-288.60951941,0.00021603,2]
[312064222,1705594232610,-3630.24934548,0.00021603,2]
[312064224,1705594232619,-339.14453727,0.00021603,2]
[312064226,1705594232629,-397.31246157,0.00021603,2]
[312064228,1705594232638,-624.52801898,0.00021603,2]
[312064231,1705594232658,-123.75790935,0.00021603,2]
[312064233,1705594232667,-908.0084121,0.00021603,2]
[312064235,1705594232679,-350.60858019,0.00021603,2]
[312064237,1705594232688,-291.17165542,0.00021603,2]
[312064239,1705594232699,-99.87250239,0.00021603,2]
[312064241,1705594232710,-500.08825079,0.00021603,2]
[312064243,1705594232719,-415.7703247,0.00021603,2]
[312064245,1705594232728,-291.08230788,0.00021603,2]
[312064247,1705594232737,-43920.97765862,0.00021603,2]
[312064250,1705594232748,-3284.84596553,0.00021603,2]
[312064253,1705594232769,-383.45149176,0.00021603,2]
[312064255,1705594232784,-1848.04359617,0.00021603,2]
[312064261,1705594232833,-4044.32963381,0.00021603,2]
[312064264,1705594232849,-1348.57020416,0.00021603,2]
[312064268,1705594232877,-6288.439,0.00021603,2]
[312064270,1705594232889,-910.3533981,0.00021603,2]
[312064272,1705594232900,-468.5699798,0.00021603,2]
[312064275,1705594232911,-928.53687171,0.00021603,2]
[312064277,1705594232922,-9609.59999881,0.00021603,2]
[312064279,1705594232934,-339.95296193,0.00021603,2]
[312064281,1705594232946,-499.51621629,0.00021603,2]
[312064285,1705594232971,-561.46022541,0.00021603,2]
[312064296,1705594233954,165.25,0.0002093,2]
[312064297,1705594234462,165.25,0.00021586,2]
[312064304,1705594238203,-866.94,0.00021603,2]
[312064305,1705594238263,-326.45,0.00021603,2]
[312064306,1705594238276,-285.7904402,0.00021603,2]
[312064307,1705594238288,-5018.87825805,0.00021603,2]
[312064308,1705594238299,-7625.30154869,0.00021603,2]
[312064309,1705594238311,-17921.32597948,0.00021603,2]
[312064310,1705594238335,-175756.86548111,0.00021603,2]
[312064311,1705594238350,-28337.78559146,0.00021603,2]
[312064312,1705594238360,-29256.8232923,0.00021604,2]
[312064313,1705594238369,-1339.95818137,0.00021605,2]
[312064314,1705594238379,-150.0,0.00021606,2]
[312064315,1705594238388,-2431.45050997,0.0002161,2]
[312064316,1705594238397,-200.28184666,0.00021616,2]
[312064317,1705594238407,-1238.69708023,0.00021616,2]
[312064318,1705594238416,-246.60959394,0.00021616,2]
[312064319,1705594238426,-156.30183788,0.00021616,2]
[312064320,1705594238436,-227.75696778,0.00021616,2]
[312064321,1705594238445,-2436.02086532,0.00021616,2]
[312064322,1705594238455,-176.01932869,0.00021616,2]
[312064323,1705594238465,-1178.58820172,0.00021616,2]
[312064324,1705594238475,-2110.89748844,0.00021618,2]
[312064325,1705594238485,-150.0,0.0002163,2]
[312064326,1705594238494,-150.0,0.00021639,2]
[312064327,1705594238504,-150.0,0.00021639,2]
[312064328,1705594238514,-150.0,0.0002164,2]
[312064329,1705594238523,-150.0,0.00021646,2]
[312064330,1705594238533,-150.0,0.00021653,2]
[312064331,1705594238542,-154.79,0.00021657,2]
[312064332,1705594238552,-150.0,0.00021661,2]
[312064333,1705594238562,-155.0,0.00021686,2]
[312064334,1705594238571,-180.11238233,0.00021686,2]
[312064335,1705594238581,-1866.36238266,0.00021686,2]
[312064337,1705594238591,-443.42337373,0.00021686,2]
[312064338,1705594238600,-200.0,0.00021686,2]
[312064339,1705594238610,-308.0,0.00021686,2]
[312064340,1705594238620,-381.35,0.00021688,2]
[312064341,1705594238629,-107995.3752,0.00021688,2]
[312064342,1705594238639,-455.5872,0.00021689,2]
[312064343,1705594238648,-7510.2338,0.00021689,2]
[312064345,1705594238659,-1036.4955,0.00021689,2]
[312064346,1705594238668,-790.6669,0.00021689,2]
[312064348,1705594238678,-260.8975,0.00021689,2]
[312064349,1705594238687,-675.1928,0.00021689,2]
[312064351,1705594238696,-381.8477,0.00021691,2]
[312064352,1705594238706,-8473.8505,0.00021693,2]
[312064354,1705594238717,-500.0,0.00021693,2]
[312064355,1705594238727,-1572.3757,0.00021694,2]
[312064357,1705594238736,-1000.0,0.00021694,2]
[312064359,1705594238745,-150.0,0.000217,2]
[312064360,1705594238754,-160.0,0.00021706,2]
[312064362,1705594238763,-150.0,0.00021716,2]
[312064364,1705594238772,-393.26675997,0.00021719,2]
[312064365,1705594238781,-985.23,0.00021722,2]
[312064367,1705594238792,-150.0,0.00021739,2]
[312064368,1705594238803,-152.91,0.00021745,2]
[312064369,1705594238813,-158.9,0.00021747,2]
[312064370,1705594238823,-150.0,0.00021758,2]
[312064371,1705594238832,-150.0,0.00021764,2]
[312064372,1705594238842,-154.79,0.00021766,2]
[312064373,1705594238852,-150.0,0.00021781,2]
[312064374,1705594238861,-1534.96406631,0.00021782,2]
[312064375,1705594238871,-174.56544921,0.00021786,2]
[312064376,1705594238881,-385.48351104,0.00021786,2]
[312064377,1705594238890,-301.00590839,0.00021786,2]
[312064378,1705594238900,-156.31781136,0.00021787,2]
[312064380,1705594238910,-3472.45233989,0.00021787,2]
[312064381,1705594238920,-500.0,0.00021788,2]
[312064383,1705594238929,-255.0,0.00021789,2]
[312064385,1705594238938,-417.6160908,0.00021789,2]
[312064387,1705594238948,-155.55451817,0.00021789,2]
[312064389,1705594238957,-383.66804724,0.00021789,2]
[312064391,1705594238969,-293.71472257,0.00021789,2]
[312064393,1705594238978,-1887.26460822,0.00021789,2]
[312064395,1705594238987,-156.45682699,0.00021789,2]
[312064397,1705594238997,-156.05286893,0.00021789,2]
[312064398,1705594239006,-155.85250216,0.00021789,2]
[312064400,1705594239015,-317.68758824,0.00021791,2]
[312064402,1705594239024,-418.08114353,0.00021791,2]
[312064404,1705594239033,-246.98562337,0.00021791,2]
[312064406,1705594239042,-185.37800408,0.00021791,2]